[Event "*** Titled Tuesday Blitz"]
[Site "Chess.com"]
[Date "2020.03.03"]
[Round "4"]
[White "karwowskikacper"]
[Black "Zubrrr"]
[Result "1-0"]
[WhiteElo "2399"]
[BlackElo "2647"]
[TimeControl "180+1"]
[EndTime "13:41:12 PST"]
[Termination "karwowskikacper won on time"]

1. e4 {[%clk 0:03:00.9]} 1... c5 {[%clk 0:02:59.2]} 2. Nf3 {[%clk 0:03:00.5]}
2... d6 {[%clk 0:02:59.6]} 3. c3 {[%clk 0:03:01]} 3... Nf6 {[%clk 0:02:59.5]} 4.
h3 {[%clk 0:03:01.4]} 4... Nbd7 {[%clk 0:02:59.1]} 5. Bd3 {[%clk 0:03:01.5]}
5... b6 {[%clk 0:02:59.1]} 6. O-O {[%clk 0:03:00.1]} 6... Bb7 {[%clk 0:02:59.3]}
7. Re1 {[%clk 0:02:58.8]} 7... Qc7 {[%clk 0:02:59.5]} 8. Bc2 {[%clk 0:02:55.1]}
8... Rc8 {[%clk 0:02:59.2]} 9. Na3 {[%clk 0:02:54.2]} 9... e6 {[%clk 0:02:53.3]}
10. d4 {[%clk 0:02:54.1]} 10... cxd4 {[%clk 0:02:51.3]} 11. cxd4 {[%clk
0:02:53.9]} 11... b5 {[%clk 0:02:49.4]} 12. Bd3 {[%clk 0:02:51.6]} 12... a6
{[%clk 0:02:49.2]} 13. Bf4 {[%clk 0:02:45.3]} 13... Be7 {[%clk 0:02:42]} 14. Rc1
{[%clk 0:02:44.1]} 14... Qb8 {[%clk 0:02:42.1]} 15. Rxc8+ {[%clk 0:02:32.2]}
15... Qxc8 {[%clk 0:02:43]} 16. Qe2 {[%clk 0:02:23]} 16... O-O {[%clk
0:02:34.8]} 17. Rc1 {[%clk 0:02:20]} 17... Qa8 {[%clk 0:02:34]} 18. Nd2 {[%clk
0:02:19.1]} 18... e5 {[%clk 0:02:20.9]} 19. dxe5 {[%clk 0:02:16.7]} 19... dxe5
{[%clk 0:02:19.1]} 20. Bg5 {[%clk 0:02:15.1]} 20... h6 {[%clk 0:02:08.1]} 21.
Bxf6 {[%clk 0:02:13.2]} 21... Nxf6 {[%clk 0:02:06.4]} 22. Nab1 {[%clk
0:02:12.6]} 22... Rc8 {[%clk 0:01:53]} 23. Nc3 {[%clk 0:02:01.8]} 23... b4
{[%clk 0:01:50.6]} 24. Nc4 {[%clk 0:01:54.6]} 24... bxc3 {[%clk 0:01:49.9]} 25.
Nb6 {[%clk 0:01:54.8]} 25... Qa7 {[%clk 0:01:11.6]} 26. Nxc8 {[%clk 0:01:52.4]}
26... Bxc8 {[%clk 0:01:12.5]} 27. Rxc3 {[%clk 0:01:51.1]} 27... Be6 {[%clk
0:01:09.2]} 28. Bc4 {[%clk 0:01:40.4]} 28... Qb7 {[%clk 0:00:13.9]} 29. Bxe6
{[%clk 0:01:32.8]} 29... fxe6 {[%clk 0:00:14.8]} 30. Qc4 {[%clk 0:01:22.8]}
30... Kf7 {[%clk 0:00:13.3]} 31. Rf3 {[%clk 0:01:16]} 31... Qxb2 {[%clk
0:00:11.7]} 32. Qxa6 {[%clk 0:01:16]} 32... Qb1+ {[%clk 0:00:10.8]} 33. Kh2
{[%clk 0:01:13.2]} 33... Qxe4 {[%clk 0:00:11.3]} 34. a4 {[%clk 0:01:10.7]} 34...
g5 {[%clk 0:00:09.3]} 35. a5 {[%clk 0:01:03.5]} 35... Qb4 {[%clk 0:00:04.8]} 36.
Qb6 {[%clk 0:00:58.1]} 36... e4 {[%clk 0:00:04.3]} 37. Qxb4 {[%clk 0:00:41.7]}
37... Bxb4 {[%clk 0:00:05.2]} 38. a6 {[%clk 0:00:37.2]} 38... Bc5 {[%clk
0:00:02.5]} 39. Rc3 {[%clk 0:00:29.6]} 39... Bxf2 {[%clk 0:00:03.1]} 40. Rc7+
{[%clk 0:00:29.7]} 40... Kg6 {[%clk 0:00:03.4]} 41. a7 {[%clk 0:00:28.3]} 41...
Bxa7 {[%clk 0:00:03.6]} 42. Rxa7 {[%clk 0:00:29.2]} 42... Kf5 {[%clk 0:00:04]}
43. Kg3 {[%clk 0:00:28.9]} 43... Nh5+ {[%clk 0:00:03.6]} 44. Kf2 {[%clk
0:00:28.8]} 44... Nf4 {[%clk 0:00:04.1]} 45. Rh7 {[%clk 0:00:23.9]} 45... Kg6
{[%clk 0:00:01.5]} 46. Rb7 {[%clk 0:00:23.8]} 46... Kf5 {[%clk 0:00:01.3]} 47.
Rb5+ {[%clk 0:00:22.3]} 1-0

[Event "*** Titled Tuesday Blitz"]
[Site "Chess.com"]
[Date "2020.03.03"]
[Round "4"]
[White "Noam_Vitenberg"]
[Black "Abdimalik_Abdisalimov"]
[Result "0-1"]
[WhiteElo "2465"]
[BlackElo "2844"]
[TimeControl "180+1"]
[EndTime "13:41:13 PST"]
[Termination "Abdimalik_Abdisalimov won on time"]

1. e4 {[%clk 0:03:00.9]} 1... e5 {[%clk 0:02:57.4]} 2. Nc3 {[%clk 0:02:58.5]}
2... Nc6 {[%clk 0:02:57.1]} 3. Bc4 {[%clk 0:02:54.7]} 3... Bc5 {[%clk
0:02:55.9]} 4. Qg4 {[%clk 0:02:49.9]} 4... g6 {[%clk 0:02:55]} 5. Qf3 {[%clk
0:02:46.4]} 5... Nf6 {[%clk 0:02:44.4]} 6. Nge2 {[%clk 0:02:38.5]} 6... d6
{[%clk 0:02:40.7]} 7. d3 {[%clk 0:02:35.5]} 7... Bg4 {[%clk 0:02:39.6]} 8. Qg3
{[%clk 0:02:34]} 8... Be6 {[%clk 0:02:35.3]} 9. Bg5 {[%clk 0:02:28]} 9... h6
{[%clk 0:02:33.8]} 10. Qh4 {[%clk 0:02:24]} 10... hxg5 {[%clk 0:02:27.4]} 11.
Qxh8+ {[%clk 0:02:23.2]} 11... Ke7 {[%clk 0:02:27.7]} 12. Qxd8+ {[%clk
0:02:17.8]} 12... Rxd8 {[%clk 0:02:28.6]} 13. Bxe6 {[%clk 0:02:16.8]} 13... Kxe6
{[%clk 0:02:27.4]} 14. f3 {[%clk 0:01:55.5]} 14... a6 {[%clk 0:02:25.5]} 15.
O-O-O {[%clk 0:01:51.9]} 15... Rh8 {[%clk 0:02:25.1]} 16. h3 {[%clk 0:01:41]}
16... Ba7 {[%clk 0:02:23.9]} 17. g3 {[%clk 0:01:30.3]} 17... Ne7 {[%clk
0:01:56.4]} 18. Rdf1 {[%clk 0:01:22.5]} 18... Nh5 {[%clk 0:01:45.5]} 19. Kd2
{[%clk 0:01:18.3]} 19... f5 {[%clk 0:01:40.7]} 20. f4 {[%clk 0:01:13.7]} 20...
gxf4 {[%clk 0:01:18.7]} 21. gxf4 {[%clk 0:01:14.6]} 21... exf4 {[%clk
0:01:12.9]} 22. Nxf4+ {[%clk 0:01:15.5]} 22... Nxf4 {[%clk 0:01:13.8]} 23. Rxf4
{[%clk 0:01:15.1]} 23... Ke5 {[%clk 0:01:14.1]} 24. Rff1 {[%clk 0:00:57.7]}
24... f4 {[%clk 0:01:13.1]} 25. Nd1 {[%clk 0:00:56.2]} 25... g5 {[%clk
0:01:07.6]} 26. c3 {[%clk 0:00:55]} 26... Ng6 {[%clk 0:01:01.9]} 27. Nf2 {[%clk
0:00:45.7]} 27... Bxf2 {[%clk 0:01:01]} 28. Rxf2 {[%clk 0:00:46.6]} 28... g4
{[%clk 0:01:00.4]} 29. d4+ {[%clk 0:00:32.5]} 29... Kf6 {[%clk 0:00:44.5]} 30.
h4 {[%clk 0:00:15.1]} 30... g3 {[%clk 0:00:25.2]} 31. Rf3 {[%clk 0:00:10.6]}
31... Rxh4 {[%clk 0:00:20.1]} 32. Rxh4 {[%clk 0:00:08.9]} 32... Nxh4 {[%clk
0:00:21]} 33. Rxf4+ {[%clk 0:00:09.2]} 33... Kg5 {[%clk 0:00:21.3]} 34. Rf1
{[%clk 0:00:03.7]} 34... g2 {[%clk 0:00:20.9]} 35. Rc1 {[%clk 0:00:03.8]} 35...
Nf3+ {[%clk 0:00:20.5]} 36. Ke3 {[%clk 0:00:04.1]} 36... g1=Q+ {[%clk
0:00:21.2]} 37. Rxg1+ {[%clk 0:00:04.5]} 37... Nxg1 {[%clk 0:00:22.1]} 38. d5
{[%clk 0:00:02.1]} 38... Nh3 {[%clk 0:00:20.5]} 39. c4 {[%clk 0:00:01.9]} 39...
Nf4 {[%clk 0:00:20.2]} 40. b4 {[%clk 0:00:02.8]} 40... Ng6 {[%clk 0:00:20.4]}
41. c5 {[%clk 0:00:02.7]} 41... Ne5 {[%clk 0:00:21.3]} 42. a4 {[%clk 0:00:02.1]}
42... Kf6 {[%clk 0:00:21.5]} 43. Kd4 {[%clk 0:00:02.3]} 43... Nd7 {[%clk
0:00:21.9]} 0-1

[Event "*** Titled Tuesday Blitz"]
[Site "Chess.com"]
[Date "2020.03.03"]
[Round "4"]
[White "DrMelekess"]
[Black "pedromartinez91"]
[Result "1-0"]
[WhiteElo "2728"]
[BlackElo "2556"]
[TimeControl "180+1"]
[EndTime "13:41:14 PST"]
[Termination "DrMelekess won on time"]

1. d4 {[%clk 0:02:52]} 1... d5 {[%clk 0:02:56.5]} 2. Nf3 {[%clk 0:02:51.1]} 2...
Nf6 {[%clk 0:02:49.5]} 3. e3 {[%clk 0:02:48.7]} 3... c5 {[%clk 0:02:46.4]} 4.
dxc5 {[%clk 0:02:47.4]} 4... e6 {[%clk 0:02:45.6]} 5. c4 {[%clk 0:02:46.7]} 5...
Bxc5 {[%clk 0:02:44.4]} 6. Nc3 {[%clk 0:02:45.9]} 6... O-O {[%clk 0:02:43.6]} 7.
cxd5 {[%clk 0:02:43]} 7... Nxd5 {[%clk 0:02:44.5]} 8. Nxd5 {[%clk 0:02:42.1]}
8... exd5 {[%clk 0:02:45.4]} 9. a3 {[%clk 0:02:39.3]} 9... Nc6 {[%clk
0:02:44.4]} 10. Bd3 {[%clk 0:02:38.8]} 10... Bg4 {[%clk 0:02:41.4]} 11. Qc2
{[%clk 0:02:09.5]} 11... Qe7 {[%clk 0:01:03.5]} 12. Bxh7+ {[%clk 0:01:38.4]}
12... Kh8 {[%clk 0:01:03.1]} 13. Bd3 {[%clk 0:01:30.2]} 13... Bxf3 {[%clk
0:01:02.1]} 14. gxf3 {[%clk 0:01:30.1]} 14... d4 {[%clk 0:01:02.5]} 15. e4
{[%clk 0:01:20.6]} 15... Ne5 {[%clk 0:01:02.4]} 16. f4 {[%clk 0:00:42.6]} 16...
Nxd3+ {[%clk 0:00:55.4]} 17. Qxd3 {[%clk 0:00:42.2]} 17... Rfe8 {[%clk
0:00:53.5]} 18. f3 {[%clk 0:00:38.1]} 18... Qh4+ {[%clk 0:00:51.6]} 19. Kd1
{[%clk 0:00:34]} 19... Rac8 {[%clk 0:00:49.2]} 20. Bd2 {[%clk 0:00:33.5]} 20...
Qh3 {[%clk 0:00:41.3]} 21. Rc1 {[%clk 0:00:28.3]} 21... Kg8 {[%clk 0:00:37.3]}
22. Qf1 {[%clk 0:00:12.1]} 22... Qh5 {[%clk 0:00:36.6]} 23. Qd3 {[%clk
0:00:08.1]} 23... Qh3 {[%clk 0:00:34.4]} 24. Rc2 {[%clk 0:00:08.3]} 24... Qe6
{[%clk 0:00:26.7]} 25. Kc1 {[%clk 0:00:06.4]} 25... Qa2 {[%clk 0:00:26.3]} 26.
Kd1 {[%clk 0:00:05]} 26... Qb1+ {[%clk 0:00:15.7]} 27. Bc1 {[%clk 0:00:04.8]}
27... Bb6 {[%clk 0:00:13.3]} 28. f5 {[%clk 0:00:03.7]} 28... Rc6 {[%clk
0:00:06.7]} 29. Kd2 {[%clk 0:00:03.4]} 29... Qa2 {[%clk 0:00:04.9]} 30. b4
{[%clk 0:00:03]} 30... Rxc2+ {[%clk 0:00:04.2]} 31. Qxc2 {[%clk 0:00:02.9]}
31... Qa1 {[%clk 0:00:02.6]} 32. Rd1 {[%clk 0:00:02.9]} 32... d3 {[%clk
0:00:02.7]} 33. Qb3 {[%clk 0:00:02.1]} 33... Rc8 {[%clk 0:00:02.2]} 34. Bb2
{[%clk 0:00:02.2]} 1-0

[Event "*** Titled Tuesday Blitz"]
[Site "Chess.com"]
[Date "2020.03.03"]
[Round "4"]
[White "NikolaGry"]
[Black "ChessMavenYeti"]
[Result "1-0"]
[WhiteElo "2649"]
[BlackElo "2240"]
[TimeControl "180+1"]
[EndTime "13:41:15 PST"]
[Termination "NikolaGry won by checkmate"]

1. e4 {[%clk 0:03:00.9]} 1... e6 {[%clk 0:02:56.8]} 2. Nf3 {[%clk 0:03:00.1]}
2... d5 {[%clk 0:02:53]} 3. Nc3 {[%clk 0:03:00.1]} 3... d4 {[%clk 0:02:52.2]} 4.
Ne2 {[%clk 0:02:59.5]} 4... c5 {[%clk 0:02:52.8]} 5. c3 {[%clk 0:02:59.5]} 5...
Nf6 {[%clk 0:02:53.1]} 6. Ng3 {[%clk 0:02:57.6]} 6... a6 {[%clk 0:02:49.9]} 7.
a4 {[%clk 0:02:51.6]} 7... Nc6 {[%clk 0:02:48.1]} 8. Bd3 {[%clk 0:02:44.6]} 8...
h5 {[%clk 0:02:47.4]} 9. h4 {[%clk 0:02:39.3]} 9... Be7 {[%clk 0:02:42.7]} 10.
Qe2 {[%clk 0:02:31.5]} 10... Ng4 {[%clk 0:02:41.8]} 11. b3 {[%clk 0:02:17.3]}
11... Nce5 {[%clk 0:02:34.1]} 12. cxd4 {[%clk 0:01:49.6]} 12... Nxf3+ {[%clk
0:02:23.2]} 13. gxf3 {[%clk 0:01:48.7]} 13... Qxd4 {[%clk 0:02:22.9]} 14. Rb1
{[%clk 0:01:39]} 14... Ne5 {[%clk 0:02:21.7]} 15. Bc2 {[%clk 0:01:34.8]} 15...
Ng6 {[%clk 0:02:03.4]} 16. Bb2 {[%clk 0:01:33.7]} 16... Qd6 {[%clk 0:01:58.1]}
17. Bxg7 {[%clk 0:01:27.4]} 17... Rg8 {[%clk 0:01:57.2]} 18. e5 {[%clk 0:01:24]}
18... Qd4 {[%clk 0:01:46.4]} 19. Bxg6 {[%clk 0:01:12.5]} 19... fxg6 {[%clk
0:01:43.4]} 20. Bf6 {[%clk 0:01:10.7]} 20... Bxf6 {[%clk 0:01:34.5]} 21. exf6
{[%clk 0:01:09.8]} 21... Qxf6 {[%clk 0:01:34.7]} 22. Ne4 {[%clk 0:01:09.8]}
22... Qe5 {[%clk 0:01:32.9]} 23. Rg1 {[%clk 0:01:02.1]} 23... b6 {[%clk
0:01:22.5]} 24. a5 {[%clk 0:00:59.4]} 24... g5 {[%clk 0:01:07.5]} 25. hxg5
{[%clk 0:00:54.8]} 25... bxa5 {[%clk 0:01:06.4]} 26. f4 {[%clk 0:00:37.8]} 26...
Qxf4 {[%clk 0:00:56.6]} 27. Qxh5+ {[%clk 0:00:32.2]} 27... Kd8 {[%clk
0:00:51.8]} 28. Nf6 {[%clk 0:00:21.1]} 28... Rf8 {[%clk 0:00:43.1]} 29. Rg4
{[%clk 0:00:16.9]} 29... Qf5 {[%clk 0:00:41.4]} 30. Rd1 {[%clk 0:00:15.3]} 30...
Rxf6 {[%clk 0:00:39]} 31. Qh4 {[%clk 0:00:09.1]} 31... Rf8 {[%clk 0:00:35.3]}
32. d4 {[%clk 0:00:09.1]} 32... c4 {[%clk 0:00:33.8]} 33. g6+ {[%clk 0:00:08.8]}
33... Kc7 {[%clk 0:00:32.2]} 34. g7 {[%clk 0:00:08.9]} 34... Rg8 {[%clk
0:00:31.1]} 35. Qe7+ {[%clk 0:00:08.8]} 35... Bd7 {[%clk 0:00:30.7]} 36. Rg5
{[%clk 0:00:08.7]} 36... Qe4+ {[%clk 0:00:30]} 37. Kf1 {[%clk 0:00:08.7]} 37...
Rad8 {[%clk 0:00:20.7]} 38. Rc5+ {[%clk 0:00:07.5]} 38... Kb7 {[%clk 0:00:20.8]}
39. bxc4 {[%clk 0:00:07.6]} 39... Qh1+ {[%clk 0:00:19.1]} 40. Ke2 {[%clk
0:00:07.7]} 40... Qe4+ {[%clk 0:00:17.4]} 41. Kf1 {[%clk 0:00:07.8]} 41... Qf3
{[%clk 0:00:17.3]} 42. Rd2 {[%clk 0:00:06.6]} 42... Qh1+ {[%clk 0:00:16.4]} 43.
Ke2 {[%clk 0:00:06.3]} 43... Qh6 {[%clk 0:00:16.5]} 44. Rb2+ {[%clk 0:00:05.4]}
44... Ka7 {[%clk 0:00:15.8]} 45. Rc7+ {[%clk 0:00:04.8]} 45... Ka8 {[%clk
0:00:16.3]} 46. Rxd7 {[%clk 0:00:04.7]} 46... Rxd7 {[%clk 0:00:16.7]} 47. Qxd7
{[%clk 0:00:04.7]} 47... Qxg7 {[%clk 0:00:16]} 48. Qc6+ {[%clk 0:00:03.7]} 48...
Ka7 {[%clk 0:00:15.5]} 49. Qb6+ {[%clk 0:00:03.8]} 49... Ka8 {[%clk 0:00:15.3]}
50. Qxa6+ {[%clk 0:00:04.3]} 50... Qa7 {[%clk 0:00:15.4]} 51. Qc6+ {[%clk
0:00:04.8]} 51... Qb7 {[%clk 0:00:14.8]} 52. Qxb7# {[%clk 0:00:05.7]} 1-0

[Event "*** Titled Tuesday Blitz"]
[Site "Chess.com"]
[Date "2020.03.03"]
[Round "4"]
[White "Konavets"]
[Black "mitrabhaa"]
[Result "1-0"]
[WhiteElo "3015"]
[BlackElo "2631"]
[TimeControl "180+1"]
[EndTime "13:41:16 PST"]
[Termination "Konavets won on time"]

1. d4 {[%clk 0:01:07.2]} 1... Nf6 {[%clk 0:02:58.6]} 2. c4 {[%clk 0:01:05.4]}
2... e6 {[%clk 0:02:58.1]} 3. g3 {[%clk 0:01:01.8]} 3... c5 {[%clk 0:02:56.7]}
4. d5 {[%clk 0:01:01.4]} 4... exd5 {[%clk 0:02:57]} 5. cxd5 {[%clk 0:01:02.3]}
5... d6 {[%clk 0:02:57.4]} 6. Nc3 {[%clk 0:01:02.5]} 6... g6 {[%clk 0:02:57.6]}
7. Bg2 {[%clk 0:01:02.1]} 7... Bg7 {[%clk 0:02:57.8]} 8. Nf3 {[%clk 0:01:03]}
8... O-O {[%clk 0:02:57.7]} 9. O-O {[%clk 0:01:03.6]} 9... Re8 {[%clk
0:02:58.1]} 10. Nd2 {[%clk 0:01:04.2]} 10... a6 {[%clk 0:02:57.7]} 11. a4 {[%clk
0:01:03.1]} 11... Nbd7 {[%clk 0:02:57.3]} 12. Nc4 {[%clk 0:01:03.1]} 12... Ne5
{[%clk 0:02:56.7]} 13. Na3 {[%clk 0:01:03.5]} 13... Rb8 {[%clk 0:02:44.5]} 14.
h3 {[%clk 0:01:02.3]} 14... Qc7 {[%clk 0:02:37.6]} 15. e4 {[%clk 0:01:00.6]}
15... h6 {[%clk 0:02:35.8]} 16. f4 {[%clk 0:00:59.5]} 16... Ned7 {[%clk
0:02:35.9]} 17. Bd2 {[%clk 0:00:57.3]} 17... Nf8 {[%clk 0:02:30.2]} 18. e5
{[%clk 0:00:43.8]} 18... dxe5 {[%clk 0:02:27.6]} 19. fxe5 {[%clk 0:00:44.2]}
19... Rxe5 {[%clk 0:02:21.9]} 20. Nc4 {[%clk 0:00:43.9]} 20... N6d7 {[%clk
0:02:01.4]} 21. d6 {[%clk 0:00:37.6]} 21... Qd8 {[%clk 0:02:01]} 22. Nxe5 {[%clk
0:00:37.8]} 22... Nxe5 {[%clk 0:02:01.1]} 23. Ne4 {[%clk 0:00:32.4]} 23... c4
{[%clk 0:01:57.1]} 24. Bc3 {[%clk 0:00:27.7]} 24... Bf5 {[%clk 0:01:55.3]} 25.
Qd5 {[%clk 0:00:26.6]} 25... Nfd7 {[%clk 0:01:52.3]} 26. Rae1 {[%clk 0:00:23]}
26... b5 {[%clk 0:01:48]} 27. g4 {[%clk 0:00:16.4]} 27... Be6 {[%clk 0:01:47.7]}
28. Qd2 {[%clk 0:00:16.5]} 28... b4 {[%clk 0:01:46.5]} 29. Bd4 {[%clk
0:00:16.5]} 29... Qa5 {[%clk 0:01:41.4]} 30. Kh1 {[%clk 0:00:15.9]} 30... Qxa4
{[%clk 0:01:39]} 31. g5 {[%clk 0:00:16.2]} 31... c3 {[%clk 0:01:34.4]} 32. bxc3
{[%clk 0:00:15.3]} 32... Nc4 {[%clk 0:01:32.5]} 33. Qf2 {[%clk 0:00:14.6]} 33...
hxg5 {[%clk 0:01:27.3]} 34. Bxg7 {[%clk 0:00:14.3]} 34... Kxg7 {[%clk
0:01:26.8]} 35. Nxg5 {[%clk 0:00:14.8]} 35... Bf5 {[%clk 0:01:09.8]} 36. Qd4+
{[%clk 0:00:13.1]} 36... Nce5 {[%clk 0:01:07.5]} 37. Rxe5 {[%clk 0:00:12.8]}
37... Nxe5 {[%clk 0:01:08]} 38. Qxe5+ {[%clk 0:00:13.7]} 38... Kg8 {[%clk
0:01:05.7]} 39. Nxf7 {[%clk 0:00:13.7]} 39... Qb5 {[%clk 0:00:59.8]} 40. Qxb5
{[%clk 0:00:09.4]} 40... Rxb5 {[%clk 0:00:59.9]} 41. Nh6+ {[%clk 0:00:09.4]}
41... Kf8 {[%clk 0:00:57.1]} 42. Nxf5 {[%clk 0:00:10.3]} 42... gxf5 {[%clk
0:00:57.3]} 43. cxb4 {[%clk 0:00:10.7]} 43... Rxb4 {[%clk 0:00:57.8]} 44. Rxf5+
{[%clk 0:00:10.4]} 44... Ke8 {[%clk 0:00:58]} 45. Bc6+ {[%clk 0:00:11]} 1-0

[Event "*** Titled Tuesday Blitz"]
[Site "Chess.com"]
[Date "2020.03.03"]
[Round "4"]
[White "filali-marouan"]
[Black "xamax2000"]
[Result "0-1"]
[WhiteElo "2389"]
[BlackElo "2679"]
[TimeControl "180+1"]
[EndTime "13:41:17 PST"]
[Termination "xamax2000 won on time"]

1. e4 {[%clk 0:03:00.9]} 1... c5 {[%clk 0:02:59.3]} 2. Nf3 {[%clk 0:03:01.1]}
2... d6 {[%clk 0:02:59.3]} 3. d4 {[%clk 0:03:00.5]} 3... cxd4 {[%clk 0:03:00.2]}
4. Nxd4 {[%clk 0:03:00.9]} 4... Nf6 {[%clk 0:03:00.8]} 5. f3 {[%clk 0:02:59.6]}
5... e5 {[%clk 0:02:59.9]} 6. Ne2 {[%clk 0:02:59.5]} 6... d5 {[%clk 0:03:00.8]}
7. exd5 {[%clk 0:02:58.8]} 7... Nxd5 {[%clk 0:02:58]} 8. a3 {[%clk 0:02:51.3]}
8... Bc5 {[%clk 0:02:45.1]} 9. c4 {[%clk 0:02:48.3]} 9... Ne3 {[%clk 0:02:40.9]}
10. Qxd8+ {[%clk 0:02:49.2]} 10... Kxd8 {[%clk 0:02:41]} 11. Bxe3 {[%clk
0:02:46.1]} 11... Bxe3 {[%clk 0:02:41.9]} 12. Nbc3 {[%clk 0:02:45.1]} 12... Be6
{[%clk 0:02:22.2]} 13. Nd5 {[%clk 0:02:32.1]} 13... Bxd5 {[%clk 0:02:13.6]} 14.
cxd5 {[%clk 0:02:33]} 14... Nd7 {[%clk 0:02:12.5]} 15. Nc3 {[%clk 0:02:28.8]}
15... Bd4 {[%clk 0:02:07.4]} 16. Rd1 {[%clk 0:02:14.4]} 16... Rc8 {[%clk
0:01:58.1]} 17. Nb5 {[%clk 0:02:05]} 17... Bxb2 {[%clk 0:01:54.7]} 18. Nd6
{[%clk 0:02:04.4]} 18... Ke7 {[%clk 0:01:33.6]} 19. Nxc8+ {[%clk 0:01:56]} 19...
Rxc8 {[%clk 0:01:34.5]} 20. Bd3 {[%clk 0:01:40.5]} 20... Bc3+ {[%clk 0:01:32.8]}
21. Ke2 {[%clk 0:01:39.2]} 21... g6 {[%clk 0:01:25.4]} 22. Rc1 {[%clk
0:01:35.3]} 22... Nb6 {[%clk 0:01:25.3]} 23. Rc2 {[%clk 0:01:20.3]} 23... Nxd5
{[%clk 0:01:07.3]} 24. g3 {[%clk 0:00:46.7]} 24... f5 {[%clk 0:01:03.5]} 25.
Rhc1 {[%clk 0:00:43.7]} 25... a6 {[%clk 0:00:54.9]} 26. a4 {[%clk 0:00:41.9]}
26... a5 {[%clk 0:00:35.5]} 27. Bb5 {[%clk 0:00:34.7]} 27... b6 {[%clk
0:00:29.4]} 28. h4 {[%clk 0:00:31.7]} 28... Rc5 {[%clk 0:00:28.5]} 29. Bd3
{[%clk 0:00:22.9]} 29... Kf6 {[%clk 0:00:24.9]} 30. h5 {[%clk 0:00:22.3]} 30...
g5 {[%clk 0:00:24.5]} 31. Rb1 {[%clk 0:00:15.2]} 31... Nb4 {[%clk 0:00:23.4]}
32. Rcc1 {[%clk 0:00:12.9]} 32... h6 {[%clk 0:00:21.6]} 33. Rd1 {[%clk
0:00:13.2]} 33... Bd4 {[%clk 0:00:21.1]} 34. Bb5 {[%clk 0:00:13.5]} 34... e4
{[%clk 0:00:16.4]} 35. Rxd4 {[%clk 0:00:11.6]} 35... Ke5 {[%clk 0:00:15.8]} 36.
Rd8 {[%clk 0:00:11.1]} 36... Rc2+ {[%clk 0:00:15.2]} 37. Kf1 {[%clk 0:00:10.7]}
37... exf3 {[%clk 0:00:15.1]} 38. Re1+ {[%clk 0:00:09.7]} 38... Kf6 {[%clk
0:00:15.5]} 39. Rd6+ {[%clk 0:00:09.7]} 39... Kf7 {[%clk 0:00:14.8]} 40. Rd7+
{[%clk 0:00:09.4]} 40... Kf6 {[%clk 0:00:14.7]} 41. Rde7 {[%clk 0:00:09.9]}
41... g4 {[%clk 0:00:14.5]} 42. R1e6+ {[%clk 0:00:09.1]} 42... Kg5 {[%clk
0:00:14.9]} 43. Re1 {[%clk 0:00:09.3]} 43... Rh2 {[%clk 0:00:13.7]} 44. Be8
{[%clk 0:00:08.2]} 44... Rh1+ {[%clk 0:00:12]} 45. Kf2 {[%clk 0:00:07.5]} 45...
Nd3+ {[%clk 0:00:11.7]} 46. Ke3 {[%clk 0:00:05.6]} 46... Rxe1+ {[%clk
0:00:12.6]} 47. Kxd3 {[%clk 0:00:05.9]} 47... Rxe7 {[%clk 0:00:13.5]} 0-1

[Event "*** Titled Tuesday Blitz"]
[Site "Chess.com"]
[Date "2020.03.03"]
[Round "4"]
[White "Megagigahiper3345"]
[Black "SoltaniciR"]
[Result "1/2-1/2"]
[WhiteElo "2117"]
[BlackElo "2505"]
[TimeControl "180+1"]
[EndTime "13:41:22 PST"]
[Termination "Game drawn by repetition"]

1. d4 {[%clk 0:02:49.9]} 1... Nf6 {[%clk 0:02:58.9]} 2. c4 {[%clk 0:02:48.2]}
2... e6 {[%clk 0:02:59]} 3. Nf3 {[%clk 0:02:47.7]} 3... b6 {[%clk 0:02:57.6]} 4.
g3 {[%clk 0:02:47.3]} 4... Ba6 {[%clk 0:02:57.5]} 5. Qc2 {[%clk 0:02:38]} 5...
c5 {[%clk 0:02:57.1]} 6. d5 {[%clk 0:02:37.7]} 6... exd5 {[%clk 0:02:55.7]} 7.
cxd5 {[%clk 0:02:38.6]} 7... g6 {[%clk 0:02:55.5]} 8. Nc3 {[%clk 0:02:36.1]}
8... Bg7 {[%clk 0:02:55.4]} 9. Bg2 {[%clk 0:02:33.7]} 9... O-O {[%clk
0:02:55.1]} 10. O-O {[%clk 0:02:34.3]} 10... d6 {[%clk 0:02:50.3]} 11. Re1
{[%clk 0:02:28.9]} 11... Re8 {[%clk 0:02:50.2]} 12. a4 {[%clk 0:02:28.5]} 12...
Nbd7 {[%clk 0:02:44.3]} 13. e4 {[%clk 0:02:28.6]} 13... Ng4 {[%clk 0:02:41.3]}
14. h3 {[%clk 0:02:24.4]} 14... Nge5 {[%clk 0:02:41]} 15. Nxe5 {[%clk
0:02:13.6]} 15... Nxe5 {[%clk 0:02:41.9]} 16. Nb5 {[%clk 0:02:07.8]} 16... c4
{[%clk 0:02:30.9]} 17. Rd1 {[%clk 0:01:44.1]} 17... Qd7 {[%clk 0:02:22.6]} 18.
f4 {[%clk 0:01:33.6]} 18... Nd3 {[%clk 0:02:22.1]} 19. Qxc4 {[%clk 0:01:30.9]}
19... Nc5 {[%clk 0:02:19.9]} 20. Ra3 {[%clk 0:01:06.1]} 20... Rac8 {[%clk
0:01:58.5]} 21. Qb4 {[%clk 0:00:55]} 21... Re7 {[%clk 0:01:35.2]} 22. Be3 {[%clk
0:00:35.7]} 22... f5 {[%clk 0:01:19.7]} 23. Bxc5 {[%clk 0:00:20.5]} 23... Rxc5
{[%clk 0:01:18.5]} 24. Re3 {[%clk 0:00:15.7]} 24... Bxb5 {[%clk 0:01:14.6]} 25.
axb5 {[%clk 0:00:15.7]} 25... Rxb5 {[%clk 0:01:14]} 26. Qa4 {[%clk 0:00:16.2]}
26... fxe4 {[%clk 0:01:11.2]} 27. Rxe4 {[%clk 0:00:15.2]} 27... Rxb2 {[%clk
0:01:10.9]} 28. Qc6 {[%clk 0:00:06.4]} 28... Qd8 {[%clk 0:00:54.3]} 29. Rde1
{[%clk 0:00:04.4]} 29... Rxe4 {[%clk 0:00:44.7]} 30. Rxe4 {[%clk 0:00:05.3]}
30... Kf7 {[%clk 0:00:41.4]} 31. h4 {[%clk 0:00:05.5]} 31... Bf6 {[%clk
0:00:34.6]} 32. Qb7+ {[%clk 0:00:05.7]} 32... Be7 {[%clk 0:00:32.8]} 33. Bf3
{[%clk 0:00:06.2]} 33... Rb1+ {[%clk 0:00:29.4]} 34. Kg2 {[%clk 0:00:06.2]}
34... Rc1 {[%clk 0:00:29.8]} 35. Qxa7 {[%clk 0:00:04.1]} 35... Qc7 {[%clk
0:00:29.2]} 36. Qxc7 {[%clk 0:00:02]} 36... Rxc7 {[%clk 0:00:28.6]} 37. Bg4
{[%clk 0:00:02.9]} 37... b5 {[%clk 0:00:24.3]} 38. Be6+ {[%clk 0:00:03.8]} 38...
Kf8 {[%clk 0:00:23.6]} 39. Rb4 {[%clk 0:00:04.7]} 39... Rc5 {[%clk 0:00:22.9]}
40. Kf3 {[%clk 0:00:03.8]} 40... Bf6 {[%clk 0:00:22.8]} 41. Bd7 {[%clk
0:00:03.9]} 41... Rxd5 {[%clk 0:00:21.5]} 42. Rxb5 {[%clk 0:00:04.1]} 42... Rxb5
{[%clk 0:00:20.6]} 43. Bxb5 {[%clk 0:00:03.8]} 43... Ke7 {[%clk 0:00:21.5]} 44.
Ke4 {[%clk 0:00:02.9]} 44... Bc3 {[%clk 0:00:21.9]} 45. Bc4 {[%clk 0:00:02.2]}
45... Be1 {[%clk 0:00:22.8]} 46. Kf3 {[%clk 0:00:02.7]} 46... Kf6 {[%clk
0:00:22.7]} 47. Bd5 {[%clk 0:00:03.2]} 47... Ke7 {[%clk 0:00:22.2]} 48. Kg4
{[%clk 0:00:03.1]} 48... Kf6 {[%clk 0:00:22.2]} 49. Kf3 {[%clk 0:00:03.6]} 49...
h5 {[%clk 0:00:22.2]} 50. Kg2 {[%clk 0:00:03.6]} 50... Kf5 {[%clk 0:00:21.4]}
51. Kf3 {[%clk 0:00:03.9]} 51... Kf6 {[%clk 0:00:20.6]} 52. Bc4 {[%clk
0:00:03.9]} 52... Bb4 {[%clk 0:00:18.2]} 53. Bb3 {[%clk 0:00:04.8]} 53... Ba5
{[%clk 0:00:17.9]} 54. Bd5 {[%clk 0:00:05.7]} 54... Bb4 {[%clk 0:00:17.8]} 55.
Bc4 {[%clk 0:00:06.6]} 55... Ba5 {[%clk 0:00:17.9]} 56. Bd5 {[%clk 0:00:07.5]}
56... Be1 {[%clk 0:00:17.4]} 1/2-1/2